[Event "Chess Festival Groningen 2023 | A"]
[Site "Groningen, Netherlands"]
[Date "2023.12.30"]
[Round "9.19"]
[White "Albers, Sasa"]
[Black "Boeren, Jurriaan"]
[Result "1-0"]
[TimeControl "90min/40moves + 30min + 30sec/move"]
[WhiteElo "2192"]
[BlackElo "2102"]

1. e4 {[%clk 01:30:58]} e6 {[%clk 01:30:51]} {[%emt 00:00:04]} 2. d4 {[%clk
01:31:22]} {[%emt 00:00:05]} d5 {[%clk 01:31:19]} {[%emt 00:00:08]} 3. Nd2
{[%clk 01:28:46]} {[%emt 00:03:03]} c5 {[%clk 01:31:29]} {[%emt 00:00:19]} 4.
Ngf3 {[%clk 01:29:06]} {[%emt 00:00:34]} cxd4 {[%clk 01:31:53]} {[%emt
00:00:19]} 5. Nxd4 {[%clk 01:27:58]} {[%emt 00:00:59]} Nf6 {[%clk 01:30:20]}
{[%emt 00:02:35]} 6. exd5 {[%clk 01:27:35]} {[%emt 00:00:48]} Nxd5 {[%clk
01:30:29]} {[%emt 00:00:10]} 7. N2f3 {[%clk 01:24:19]} {[%emt 00:03:32]} Bb4+
{[%clk 01:29:07]} {[%emt 00:01:56]} 8. Bd2 {[%clk 01:22:59]} {[%emt 00:01:58]}
O-O {[%clk 01:29:06]} {[%emt 00:00:24]} 9. Be2 {[%clk 01:10:04]} {[%emt
00:13:32]} Nc6 {[%clk 01:23:00]} {[%emt 00:06:23]} 10. Nxc6 {[%clk 01:08:35]}
{[%emt 00:01:58]} bxc6 {[%clk 01:23:22]} {[%emt 00:00:53]} 11. c4 {[%clk
01:04:58]} {[%emt 00:03:32]} Bxd2+ {[%clk 01:22:09]} {[%emt 00:02:01]} 12. Qxd2
{[%clk 01:05:24]} Nf6 {[%clk 01:19:20]} {[%emt 00:02:57]} 13. Qxd8 {[%clk
01:04:12]} {[%emt 00:01:44]} Rxd8 {[%clk 01:19:46]} {[%emt 00:00:04]} 14. Ne5
{[%clk 01:04:10]} {[%emt 00:00:28]} Bb7 {[%clk 01:18:09]} {[%emt 00:02:09]} 15.
Bf3 {[%clk 01:03:43]} {[%emt 00:00:55]} Rac8 {[%clk 01:05:30]} {[%emt
00:13:40]} 16. Ke2 {[%clk 00:50:12]} {[%emt 00:13:29]} Nd7 {[%clk 00:58:22]}
{[%emt 00:07:43]} 17. Nxd7 {[%clk 00:45:07]} {[%emt 00:05:44]} Rxd7 {[%clk
00:58:03]} {[%emt 00:00:36]} 18. Rhd1 {[%clk 00:44:24]} {[%emt 00:01:13]} Rcd8
{[%clk 00:57:43]} {[%emt 00:00:51]} 19. g4 {[%clk 00:27:59]} {[%emt 00:16:58]}
Ba6 {[%clk 00:53:09]} {[%emt 00:05:30]} 20. b3 {[%clk 00:28:05]} c5 {[%clk
00:53:28]} {[%emt 00:00:17]} 21. a3 {[%clk 00:23:16]} {[%emt 00:05:24]} Rd4
{[%clk 00:46:45]} {[%emt 00:06:54]} 22. Rxd4 {[%clk 00:23:18]} {[%emt
00:00:32]} Rxd4 {[%clk 00:45:24]} {[%emt 00:02:04]} 23. Rd1 {[%clk 00:21:30]}
{[%emt 00:02:37]} e5 {[%clk 00:43:44]} {[%emt 00:01:40]} 24. Rxd4 {[%clk
00:21:40]} {[%emt 00:00:26]} cxd4 {[%clk 00:44:02]} {[%emt 00:00:10]} 25. Kd3
{[%clk 00:21:45]} {[%emt 00:00:17]} Kf8 {[%clk 00:42:25]} {[%emt 00:02:20]} 26.
b4 {[%clk 00:21:35]} {[%emt 00:00:26]} Ke7 {[%clk 00:41:47]} {[%emt 00:01:37]}
27. b5 {[%clk 00:15:46]} {[%emt 00:05:51]} Bc8 {[%clk 00:41:07]} {[%emt
00:02:01]} 28. c5 {[%clk 00:14:54]} {[%emt 00:00:29]} Kd8 {[%clk 00:38:12]}
{[%emt 00:03:24]} 29. Ke4 {[%clk 00:14:34]} {[%emt 00:01:23]} f6 {[%clk
00:38:08]} {[%emt 00:00:05]} 30. Kd5 {[%clk 00:14:44]} {[%emt 00:00:17]} Kc7
{[%clk 00:37:53]} {[%emt 00:00:48]} 31. a4 {[%clk 00:13:55]} {[%emt 00:01:19]}
h6 {[%clk 00:27:34]} {[%emt 00:10:46]} 32. a5 {[%clk 00:12:11]} {[%emt
00:02:14]} d3 {[%clk 00:24:47]} {[%emt 00:03:37]} 33. Ke4 {[%clk 00:10:44]}
{[%emt 00:01:36]} d2 {[%clk 00:21:40]} {[%emt 00:04:00]} 34. Ke3 {[%clk
00:10:52]} d1=N+ {[%clk 00:20:19]} {[%emt 00:02:30]} 35. Bxd1 {[%clk 00:11:11]}
1-0

[Event "Chess Festival Groningen 2023 | A"]
[Site "Groningen, Netherlands"]
[Date "2023.12.30"]
[Round "9.20"]
[White "Boer, Alef"]
[Black "Smeets, Kobe"]
[Result "0-1"]
[TimeControl "90min/40moves + 30min + 30sec/move"]
[WhiteElo "2017"]
[BlackElo "2239"]

1. e4 {[%clk 01:03:26]} {[%emt 00:27:55]} c5 {[%clk 01:30:43]} {[%emt
00:00:10]} 2. Nf3 {[%clk 01:03:42]} {[%emt 00:00:05]} e6 {[%clk 01:31:05]}
{[%emt 00:00:05]} 3. c3 {[%clk 01:04:03]} {[%emt 00:00:28]} Nf6 {[%clk
01:31:19]} {[%emt 00:00:13]} 4. e5 {[%clk 01:04:18]} {[%emt 00:00:05]} Nd5
{[%clk 01:31:44]} 5. g3 {[%clk 01:04:27]} {[%emt 00:00:17]} d6 {[%clk
01:31:20]} {[%emt 00:00:54]} 6. exd6 {[%clk 01:02:47]} {[%emt 00:02:10]} Bxd6
{[%clk 01:31:40]} {[%emt 00:00:38]} 7. Bg2 {[%clk 01:03:00]} {[%emt 00:00:08]}
Nc6 {[%clk 01:30:49]} {[%emt 00:01:03]} 8. O-O {[%clk 01:03:18]} {[%emt
00:00:11]} O-O {[%clk 01:30:42]} {[%emt 00:01:05]} 9. d4 {[%clk 01:03:42]} cxd4
{[%clk 01:25:13]} {[%emt 00:05:36]} 10. cxd4 {[%clk 01:04:06]} {[%emt
00:00:41]} b6 {[%clk 01:23:27]} {[%emt 00:01:43]} 11. Nc3 {[%clk 01:04:30]}
{[%emt 00:00:06]} Ba6 {[%clk 01:21:58]} {[%emt 00:01:57]} 12. Re1 {[%clk
01:04:52]} {[%emt 00:00:15]} Nxc3 {[%clk 01:18:08]} {[%emt 00:04:33]} 13. bxc3
{[%clk 01:05:08]} {[%emt 00:00:08]} Rc8 {[%clk 01:18:25]} {[%emt 00:00:05]} 14.
Ng5 {[%clk 00:59:18]} {[%emt 00:06:44]} Be7 {[%clk 01:08:33]} {[%emt 00:10:22]}
15. f4 {[%clk 00:49:14]} {[%emt 00:10:03]} h6 {[%clk 01:08:14]} {[%emt
00:00:50]} 16. Nf3 {[%clk 00:46:59]} {[%emt 00:02:44]} Na5 {[%clk 01:08:19]}
{[%emt 00:00:46]} 17. Bd2 {[%clk 00:45:11]} {[%emt 00:02:14]} Nc4 {[%clk
01:04:56]} {[%emt 00:03:35]} 18. Ne5 {[%clk 00:44:08]} {[%emt 00:01:53]} Nxd2
{[%clk 01:01:22]} {[%emt 00:03:49]} 19. Qxd2 {[%clk 00:43:45]} {[%emt
00:00:49]} Qc7 {[%clk 01:01:16]} {[%emt 00:00:32]} 20. Re3 {[%clk 00:40:45]}
{[%emt 00:03:32]} Bb7 {[%clk 00:57:17]} {[%emt 00:04:29]} 21. Bxb7 {[%clk
00:41:02]} {[%emt 00:00:53]} Qxb7 {[%clk 00:57:45]} 22. Rd3 {[%clk 00:38:02]}
{[%emt 00:03:13]} Rfd8 {[%clk 00:57:31]} {[%emt 00:00:25]} 23. Rf1 {[%clk
00:36:58]} {[%emt 00:01:31]} Qe4 {[%clk 00:48:47]} {[%emt 00:09:13]} 24. Qg2
{[%clk 00:32:12]} {[%emt 00:05:17]} Qxg2+ {[%clk 00:48:54]} {[%emt 00:00:44]}
25. Kxg2 {[%clk 00:32:35]} Rd5 {[%clk 00:49:13]} {[%emt 00:00:08]} 26. Rf2
{[%clk 00:25:24]} {[%emt 00:08:05]} Ra5 {[%clk 00:49:31]} 27. c4 {[%clk
00:19:30]} {[%emt 00:06:03]} f6 {[%clk 00:39:41]} {[%emt 00:10:16]} 28. Ng6
{[%clk 00:19:37]} {[%emt 00:00:22]} Bd6 {[%clk 00:38:03]} {[%emt 00:02:08]} 29.
Rc2 {[%clk 00:18:23]} {[%emt 00:01:44]} Kf7 {[%clk 00:38:11]} {[%emt 00:00:35]}
30. Nh4 {[%clk 00:18:46]} {[%emt 00:00:05]} Ra4 {[%clk 00:32:22]} {[%emt
00:06:09]} 31. Rdc3 {[%clk 00:17:51]} {[%emt 00:01:26]} g5 {[%clk 00:32:17]}
{[%emt 00:01:08]} 32. fxg5 {[%clk 00:18:03]} {[%emt 00:00:12]} hxg5 {[%clk
00:32:39]} 33. Nf3 {[%clk 00:18:25]} g4 {[%clk 00:32:40]} {[%emt 00:00:57]} 34.
Ng1 {[%clk 00:17:22]} {[%emt 00:00:51]} e5 {[%clk 00:32:00]} {[%emt 00:01:50]}
35. Ne2 {[%clk 00:15:58]} {[%emt 00:01:51]} exd4 {[%clk 00:31:49]} {[%emt
00:00:04]} 36. Nxd4 {[%clk 00:15:46]} {[%emt 00:00:43]} Be5 {[%clk 00:32:12]}
{[%emt 00:00:21]} 37. Rd2 {[%clk 00:14:50]} {[%emt 00:01:13]} Rd8 {[%clk
00:31:09]} {[%emt 00:01:32]} 38. Rcd3 {[%clk 00:14:58]} {[%emt 00:01:02]} Rxc4
{[%clk 00:31:00]} {[%emt 00:00:04]} 39. Nb5 {[%clk 00:14:07]} {[%emt 00:01:16]}
Rxd3 {[%clk 00:31:09]} {[%emt 00:00:41]} 40. Rxd3 {[%clk 00:14:33]} Rc2+ {[%clk
00:30:50]} {[%emt 00:00:33]} 41. Kg1 {[%clk 00:14:56]} {[%emt 00:00:52]} Rxa2
{[%clk 00:31:07]} 0-1

[Event "Chess Festival Groningen 2023 | A"]
[Site "Groningen, Netherlands"]
[Date "2023.12.30"]
[Round "9.21"]
[White "Adamovics, Aleksejs"]
[Black "Aashman, Gupta"]
[Result "1/2-1/2"]
[TimeControl "90min/40moves + 30min + 30sec/move"]
[BlackFideId "45022500"]
[WhiteElo "2015"]
[BlackElo "2235"]

1. c4 {[%clk 01:30:56]} e5 {[%clk 01:29:19]} {[%emt 00:01:29]} 2. Nc3 {[%clk
01:31:17]} {[%emt 00:00:32]} Nf6 {[%clk 01:29:41]} {[%emt 00:00:09]} 3. Nf3
{[%clk 01:31:41]} Nc6 {[%clk 01:29:50]} {[%emt 00:00:09]} 4. e4 {[%clk
01:32:03]} {[%emt 00:00:05]} Bb4 {[%clk 01:29:37]} {[%emt 00:01:12]} 5. d3
{[%clk 01:32:08]} {[%emt 00:00:09]} d6 {[%clk 01:29:38]} {[%emt 00:00:43]} 6.
Be2 {[%clk 01:32:25]} a5 {[%clk 01:22:35]} {[%emt 00:07:56]} 7. O-O {[%clk
01:30:34]} {[%emt 00:02:17]} Bc5 {[%clk 01:15:48]} {[%emt 00:06:41]} 8. Be3
{[%clk 01:28:24]} {[%emt 00:03:18]} Bg4 {[%clk 01:06:03]} {[%emt 00:09:37]} 9.
Qd2 {[%clk 01:19:33]} {[%emt 00:09:30]} Bxf3 {[%clk 00:54:12]} {[%emt
00:12:37]} 10. Bxf3 {[%clk 01:19:38]} {[%emt 00:00:05]} Nd4 {[%clk 00:54:14]}
{[%emt 00:00:23]} 11. Bd1 {[%clk 01:19:02]} {[%emt 00:01:06]} Ne6 {[%clk
00:51:55]} {[%emt 00:03:08]} 12. Ne2 {[%clk 01:09:37]} {[%emt 00:09:39]} O-O
{[%clk 00:50:19]} {[%emt 00:02:35]} 13. h3 {[%clk 01:00:21]} {[%emt 00:09:14]}
c6 {[%clk 00:41:07]} {[%emt 00:09:42]} 14. Bc2 {[%clk 00:54:08]} {[%emt
00:06:43]} Qb6 {[%clk 00:33:15]} {[%emt 00:08:21]} 15. Rab1 {[%emt 00:11:52]}
Rfd8 {[%clk 00:32:28]} {[%emt 00:00:23]} 16. Nc3 {[%clk 00:39:50]} {[%emt
00:04:28]} Qc7 {[%clk 00:27:02]} {[%emt 00:06:18]} 17. Rbc1 {[%clk 00:37:02]}
{[%emt 00:02:52]} Qe7 {[%clk 00:25:03]} {[%emt 00:02:49]} 18. Rfe1 {[%clk
00:28:40]} {[%emt 00:09:07]} Nd7 {[%clk 00:16:16]} {[%emt 00:08:37]} 19. a3
{[%clk 00:26:06]} {[%emt 00:03:05]} Ndf8 {[%clk 00:14:08]} {[%emt 00:02:38]} 20.
Ne2 {[%clk 00:23:10]} {[%emt 00:03:26]} Qf6 {[%clk 00:13:15]} {[%emt 00:01:27]}
21. Ra1 {[%clk 00:20:23]} {[%emt 00:03:21]} Ng6 {[%clk 00:10:02]} {[%emt
00:03:41]} 22. g3 {[%clk 00:17:20]} {[%emt 00:03:28]} a4 {[%clk 00:03:50]}
{[%emt 00:06:53]} 23. Kg2 {[%clk 00:15:25]} {[%emt 00:02:13]} h6 {[%clk
00:03:09]} {[%emt 00:01:11]} 24. Red1 {[%clk 00:15:04]} {[%emt 00:01:17]} Ng5
{[%clk 00:01:47]} {[%emt 00:01:25]} 25. Ng1 {[%clk 00:13:51]} {[%emt 00:01:44]}
Ne6 {[%clk 00:01:57]} {[%emt 00:00:28]} 26. Ne2 {[%clk 00:13:30]} {[%emt
00:00:47]} Ng5 {[%clk 00:01:41]} {[%emt 00:00:55]} 27. Ng1 {[%clk 00:13:46]}
{[%emt 00:00:21]} Ne6 {[%clk 00:01:02]} {[%emt 00:01:29]} 28. Ne2 1/2-1/2

[Event "Chess Festival Groningen 2023 | A"]
[Site "Groningen, Netherlands"]
[Date "2023.12.30"]
[Round "9.22"]
[White "Francs, Marats"]
[Black "Keuning, Selwin"]
[Result "1-0"]
[TimeControl "90min/40moves + 30min + 30sec/move"]
[WhiteElo "1990"]
[BlackElo "2139"]

1. e4 {[%clk 01:30:45]} {[%emt 00:00:16]} c5 {[%clk 01:30:55]} {[%emt
00:00:05]} 2. Nf3 {[%clk 01:30:59]} {[%emt 00:00:15]} e6 {[%clk 01:31:21]}
{[%emt 00:00:07]} 3. d4 {[%clk 01:31:13]} {[%emt 00:00:14]} cxd4 {[%clk
01:31:47]} {[%emt 00:00:06]} 4. Nxd4 {[%clk 01:31:36]} {[%emt 00:00:07]} Nc6
{[%clk 01:32:14]} {[%emt 00:00:04]} 5. Nc3 {[%clk 01:31:51]} {[%emt 00:00:10]}
Qc7 {[%clk 01:32:41]} {[%emt 00:00:06]} 6. Be3 {[%clk 01:32:02]} {[%emt
00:00:19]} a6 {[%clk 01:33:07]} {[%emt 00:00:05]} 7. Qd2 {[%clk 01:30:31]}
{[%emt 00:02:05]} Nf6 {[%clk 01:32:05]} {[%emt 00:01:28]} 8. O-O-O {[%clk
01:30:20]} {[%emt 00:00:42]} Be7 {[%clk 01:31:55]} {[%emt 00:00:36]} 9. f3
{[%clk 01:30:06]} {[%emt 00:00:45]} b5 {[%clk 01:28:17]} {[%emt 00:04:07]} 10.
Kb1 {[%clk 01:28:02]} {[%emt 00:02:36]} Bb7 {[%clk 01:27:32]} {[%emt 00:01:14]}
11. g4 {[%clk 01:20:26]} {[%emt 00:08:06]} Nxd4 {[%clk 01:27:53]} {[%emt
00:00:08]} 12. Bxd4 {[%clk 01:19:56]} {[%emt 00:01:01]} O-O {[%clk 01:27:53]}
{[%emt 00:00:29]} 13. Rg1 {[%clk 01:17:29]} {[%emt 00:02:57]} Rfd8 {[%clk
01:25:29]} {[%emt 00:02:54]} 14. h4 {[%clk 01:11:27]} {[%emt 00:06:36]} Bc6
{[%clk 01:12:39]} {[%emt 00:13:16]} 15. Ne2 {[%clk 01:05:13]} {[%emt 00:06:44]}
e5 {[%clk 01:10:33]} {[%emt 00:02:34]} 16. Bc3 {[%clk 00:56:17]} {[%emt
00:09:26]} a5 {[%clk 01:05:16]} {[%emt 00:05:48]} 17. Ng3 {[%clk 00:41:18]}
{[%emt 00:15:29]} d5 {[%clk 00:57:12]} {[%emt 00:08:35]} 18. Qe1 {[%clk
00:38:49]} {[%emt 00:03:02]} dxe4 {[%clk 00:53:23]} {[%emt 00:04:16]} 19. Rxd8+
{[%clk 00:38:41]} {[%emt 00:00:40]} Bxd8 {[%clk 00:52:54]} {[%emt 00:00:57]} 20.
fxe4 {[%clk 00:34:56]} {[%emt 00:04:14]} b4 {[%clk 00:47:56]} {[%emt 00:05:28]}
21. Bd2 {[%clk 00:30:00]} {[%emt 00:05:37]} Qb7 {[%clk 00:42:07]} {[%emt
00:06:07]} 22. Bd3 {[%clk 00:29:36]} {[%emt 00:00:58]} Bb6 {[%clk 00:40:36]}
{[%emt 00:02:04]} 23. Rf1 {[%clk 00:29:14]} {[%emt 00:00:46]} Qd7 {[%clk
00:34:21]} {[%emt 00:06:48]} 24. g5 {[%clk 00:25:07]} {[%emt 00:04:37]} Ne8
{[%clk 00:33:44]} {[%emt 00:01:04]} 25. h5 {[%clk 00:23:05]} {[%emt 00:02:44]}
Bb5 {[%clk 00:27:05]} {[%emt 00:06:57]} 26. g6 {[%clk 00:19:58]} {[%emt
00:03:43]} fxg6 {[%clk 00:23:24]} {[%emt 00:04:04]} 27. hxg6 {[%clk 00:18:13]}
{[%emt 00:02:15]} hxg6 {[%clk 00:21:13]} {[%emt 00:02:43]} 28. Bxb4 {[%clk
00:17:18]} {[%emt 00:01:27]} axb4 {[%clk 00:15:26]} {[%emt 00:06:13]} 29. Qxb4
{[%clk 00:17:35]} {[%emt 00:00:17]} Nc7 {[%clk 00:11:15]} {[%emt 00:04:39]} 30.
Qb3+ {[%clk 00:17:54]} {[%emt 00:00:09]} Qe6 {[%clk 00:11:36]} {[%emt
00:00:13]} 31. Qxe6+ {[%clk 00:18:13]} {[%emt 00:00:07]} Nxe6 {[%clk 00:12:03]}
{[%emt 00:00:09]} 32. Bxb5 {[%clk 00:18:37]} Nf4 {[%clk 00:12:28]} {[%emt
00:00:06]} 33. Bc4+ {[%clk 00:18:42]} {[%emt 00:00:24]} Kf8 {[%clk 00:12:40]}
{[%emt 00:00:19]} 34. c3 {[%clk 00:17:42]} {[%emt 00:01:34]} Ke7 {[%clk
00:11:56]} {[%emt 00:01:09]} 35. Kc2 {[%clk 00:17:47]} {[%emt 00:00:29]} Kf6
{[%clk 00:09:23]} {[%emt 00:02:59]} 36. b4 {[%clk 00:17:38]} {[%emt 00:00:39]}
Kg5 {[%clk 00:08:00]} {[%emt 00:01:53]} 37. Kb3 {[%clk 00:16:54]} {[%emt
00:01:14]} Kg4 {[%clk 00:06:20]} {[%emt 00:02:09]} 38. Ne2 {[%clk 00:16:47]}
{[%emt 00:00:48]} g5 {[%clk 00:06:10]} {[%emt 00:00:31]} 39. a4 {[%clk
00:16:57]} {[%emt 00:00:19]} Rb8 {[%clk 00:03:27]} {[%emt 00:03:16]} 40. Kc2
{[%clk 00:15:58]} {[%emt 00:01:25]} Kh3 {[%clk 00:00:44]} {[%emt 00:03:20]} 41.
a5 {[%clk 00:15:50]} {[%emt 00:00:32]} Ba7 {[%clk 00:29:33]} {[%emt 00:01:42]}
42. b5 {[%clk 00:44:33]} {[%emt 00:01:46]} Kg2 {[%clk 00:24:18]} {[%emt
00:05:45]} 43. Rb1 {[%clk 00:44:09]} {[%emt 00:00:55]} Be3 {[%clk 00:24:23]}
{[%emt 00:00:25]} 44. b6 {[%clk 00:43:26]} {[%emt 00:01:13]} Kf3 {[%clk
00:19:03]} {[%emt 00:05:49]} 45. a6 {[%clk 00:40:19]} {[%emt 00:03:38]} Bxb6
{[%clk 00:19:04]} {[%emt 00:00:33]} 46. Rxb6 {[%clk 00:40:23]} {[%emt
00:00:22]} Ra8 {[%clk 00:18:23]} {[%emt 00:01:10]} 47. Ng1+ {[%clk 00:38:28]}
{[%emt 00:02:33]} Kf2 {[%clk 00:17:48]} {[%emt 00:01:00]} 48. Rb1 {[%clk
00:38:41]} {[%emt 00:00:14]} g4 {[%clk 00:17:20]} {[%emt 00:00:58]} 49. Kb3
{[%clk 00:35:53]} {[%emt 00:03:19]} g3 {[%clk 00:13:46]} {[%emt 00:04:05]} 50.
Ka4 {[%clk 00:35:48]} {[%emt 00:00:41]} g2 {[%clk 00:12:24]} {[%emt 00:01:44]}
51. Ka5 {[%clk 00:36:02]} {[%emt 00:00:22]} g5 {[%clk 00:12:18]} {[%emt
00:00:35]} 52. Bd5 {[%clk 00:34:48]} {[%emt 00:01:40]} Rc8 {[%clk 00:07:28]}
{[%emt 00:05:19]} 53. c4 {[%clk 00:34:19]} {[%emt 00:00:59]} g4 {[%clk
00:06:55]} {[%emt 00:01:07]} 54. a7 {[%clk 00:34:02]} {[%emt 00:00:43]} Nh3
{[%clk 00:07:16]} {[%emt 00:00:17]} 55. Rb8 {[%clk 00:32:37]} {[%emt 00:01:48]}
Rxb8 {[%clk 00:07:06]} {[%emt 00:00:40]} 56. axb8=Q {[%clk 00:32:54]} {[%emt
00:00:12]} Nxg1 {[%clk 00:07:34]} {[%emt 00:00:07]} 57. Qb6+ {[%clk 00:31:30]}
{[%emt 00:01:50]} Kf1 {[%clk 00:07:59]} {[%emt 00:00:08]} 58. c5 {[%clk
00:31:03]} {[%emt 00:13:20]} Ne2 {[%clk 00:06:23]} 59. c6 {[%clk 00:31:05]}
g1=Q {[%clk 00:06:41]} 60. c7 {[%clk 00:31:01]} Qxb6+ {[%clk 00:06:28]} 61.
Kxb6 {[%clk 00:31:26]} {[%emt 00:00:04]} g3 {[%clk 00:06:49]} 62. c8=Q {[%clk
00:31:40]} g2 {[%clk 00:07:11]} 63. Qh3 {[%clk 00:30:40]} Kf2 {[%clk 00:06:12]}
64. Qh2 {[%clk 00:30:58]} {[%emt 00:00:05]} Ng3 {[%clk 00:03:13]} 65. Bc4
{[%clk 00:30:01]} {[%emt 00:00:12]} Nf1 {[%clk 00:03:34]} {[%emt 00:00:10]} 66.
Bxf1 {[%clk 00:30:20]} {[%emt 00:00:11]} Kxf1 {[%clk 00:04:02]} {[%emt
00:00:05]} 67. Kc5 {[%clk 00:30:40]} {[%emt 00:00:06]} 1-0

[Event "Chess Festival Groningen 2023 | A"]
[Site "Groningen, Netherlands"]
[Date "2023.12.30"]
[Round "9.23"]
[White "Van Rootselaar, Rik"]
[Black "Arnold, Rhys"]
[Result "1-0"]
[TimeControl "90min/40moves + 30min + 30sec/move"]
[WhiteElo "2105"]
[BlackElo "2053"]

1. e4 {[%clk 01:30:49]} {[%emt 00:00:40]} c5 {[%clk 01:30:57]} 2. Nf3 {[%clk
01:31:07]} Nc6 {[%clk 01:31:25]} {[%emt 00:00:13]} 3. d4 {[%clk 01:31:20]} cxd4
{[%clk 01:31:53]} 4. Nxd4 {[%clk 01:31:45]} e5 {[%clk 01:32:22]} 5. Nb5 {[%clk
01:30:31]} {[%emt 00:01:38]} d6 {[%clk 01:32:49]} {[%emt 00:00:29]} 6. c4
{[%clk 01:25:36]} {[%emt 00:05:06]} g6 {[%clk 01:33:10]} {[%emt 00:00:06]} 7.
Bd3 {[%clk 01:22:11]} {[%emt 00:03:51]} Be6 {[%clk 01:32:34]} {[%emt 00:01:06]}
8. O-O {[%clk 01:21:44]} {[%emt 00:01:16]} Rc8 {[%clk 01:31:51]} {[%emt
00:00:55]} 9. Be3 {[%clk 01:20:40]} {[%emt 00:01:32]} a6 {[%clk 01:28:12]}
{[%emt 00:04:10]} 10. N5c3 {[%clk 01:20:16]} {[%emt 00:00:56]} Bg7 {[%clk
01:24:37]} {[%emt 00:04:04]} 11. Nd5 {[%clk 01:15:45]} {[%emt 00:04:58]} Bxd5
{[%clk 01:21:43]} {[%emt 00:03:35]} 12. cxd5 {[%clk 01:15:40]} {[%emt
00:00:32]} Nd4 {[%clk 01:21:35]} {[%emt 00:01:05]} 13. Nc3 {[%clk 01:14:57]}
{[%emt 00:00:39]} Nf6 {[%clk 01:15:50]} {[%emt 00:06:15]} 14. Rc1 {[%clk
01:08:06]} {[%emt 00:07:20]} O-O {[%clk 01:15:04]} {[%emt 00:01:24]} 15. f3
{[%clk 01:04:56]} {[%emt 00:03:31]} Nh5 {[%clk 01:08:48]} {[%emt 00:06:48]} 16.
Qd2 {[%clk 01:02:36]} {[%emt 00:02:57]} Nf4 {[%clk 01:07:57]} {[%emt 00:01:36]}
17. g3 {[%clk 00:48:33]} {[%emt 00:14:11]} Nxd3 {[%clk 01:06:39]} {[%emt
00:02:09]} 18. Qxd3 {[%clk 00:48:56]} {[%emt 00:00:08]} b5 {[%clk 01:05:37]}
{[%emt 00:01:10]} 19. Kg2 {[%clk 00:45:00]} {[%emt 00:05:03]} Qa5 {[%clk
01:03:50]} {[%emt 00:01:40]} 20. a3 {[%clk 00:43:17]} {[%emt 00:02:13]} Rc4
{[%clk 00:56:23]} {[%emt 00:08:36]} 21. Na2 {[%clk 00:38:52]} {[%emt 00:04:18]}
Rfc8 {[%clk 00:52:17]} {[%emt 00:05:02]} 22. Nb4 {[%clk 00:37:57]} {[%emt
00:01:24]} Qa4 {[%clk 00:48:01]} {[%emt 00:04:18]} 23. Rfd1 {[%clk 00:30:35]}
{[%emt 00:07:51]} Nb3 {[%clk 00:24:50]} {[%emt 00:23:45]} 24. Rxc4 {[%clk
00:29:03]} {[%emt 00:02:35]} Rxc4 {[%clk 00:23:07]} {[%emt 00:02:15]} 25. Nxa6
{[%clk 00:28:20]} {[%emt 00:00:34]} f5 {[%clk 00:19:25]} {[%emt 00:04:13]} 26.
Nb4 {[%clk 00:27:21]} {[%emt 00:01:28]} fxe4 {[%clk 00:17:15]} {[%emt
00:03:18]} 27. fxe4 {[%clk 00:27:44]} Bf6 {[%clk 00:15:14]} {[%emt 00:02:00]}
28. Rf1 {[%clk 00:25:21]} {[%emt 00:02:53]} Bg7 {[%clk 00:14:44]} {[%emt
00:01:00]} 29. Bb6 {[%clk 00:24:46]} {[%emt 00:01:05]} Nd4 {[%clk 00:14:03]}
{[%emt 00:01:14]} 30. Bxd4 {[%clk 00:23:40]} {[%emt 00:01:32]} Rxd4 {[%clk
00:13:08]} {[%emt 00:01:33]} 31. Qf3 {[%clk 00:22:27]} {[%emt 00:01:35]} Rd2+
{[%clk 00:13:20]} {[%emt 00:00:46]} 32. Kh1 {[%clk 00:21:25]} {[%emt 00:01:05]}
h6 {[%clk 00:13:22]} {[%emt 00:00:55]} 33. Rc1 {[%clk 00:17:50]} {[%emt
00:03:44]} Rxb2 {[%clk 00:12:39]} {[%emt 00:01:08]} 34. Nc6 {[%clk 00:16:10]}
{[%emt 00:02:09]} Rb3 {[%clk 00:10:04]} {[%emt 00:03:09]} 35. Ne7+ {[%clk
00:16:16]} {[%emt 00:00:41]} Kh7 {[%clk 00:10:30]} 36. Qg4 {[%clk 00:16:26]}
{[%emt 00:00:17]} Kh8 {[%clk 00:01:09]} {[%emt 00:09:37]} 37. Rc8+ {[%clk
00:16:36]} {[%emt 00:00:20]} 1-0